bitfinex/quotes_ETHUSD_20220119
["timestamp","ask_amount","ask_price","bid_price","bid_amount"]
[1642631976641,0.00113685,3130.1,3129.7,0.12883685]
[1642631980795,0.00113685,3130.1,3129.7,2.5354021]
[1642631981394,0.00113685,3130.1,3129.7,2.00113685]
[1642631981597,2.71861723,3130.1,3129.7,2.00113685]
[1642631981995,0.30113685,3130.1,3129.7,2.00113685]
[1642631982396,0.00113685,3130.1,3129.7,2.00113685]
[1642631982695,2.71858295,3130.1,3129.7,2.00113685]
[1642631983097,2.71858295,3130.1,3129.8,2.42121309]
[1642631983438,0.30113685,3130.1,3129.8,2.42121309]
[1642631983641,0.00113685,3130.1,3129.7,4.44188441]
[1642631983845,0.00113685,3130.1,3129.7,2.00113685]
[1642631984040,2.71857116,3130.1,3129.7,4.47538578]
[1642631984240,0.00113685,3130.1,3129.7,2.00113685]
[1642631984442,0.00113685,3130.1,3129.8,2.40985875]
[1642631984640,2.71856542,3130.1,3129.8,2.40985875]
[1642631984841,0.30113685,3130.1,3129.8,2.40985875]
[1642631985050,0.00113685,3130.1,3129.8,2.40985875]
[1642631985646,0.00113685,3130.1,3129.8,2.53755875]
[1642631986849,2.71856438,3130.1,3129.8,0.1277]
[1642631987047,0.00113685,3130.1,3129.8,0.1277]
[1642631987294,2.71856164,3130.1,3129.8,0.1277]
[1642631987494,0.00113685,3130.1,3129.8,0.1277]
[1642631987892,0.00113685,3130.1,3129.7,4.65445791]
[1642631988093,0.00113685,3130.1,3129.7,4.53525791]
[1642631988294,0.00113685,3130.1,3129.7,4.65605791]
[1642631988493,0.00113685,3130.1,3129.7,4.65525791]
[1642631988697,0.00113685,3130.1,3129.7,4.53525791]
[1642631988893,0.00113685,3130.1,3129.7,2.12883685]
[1642631989099,0.00113685,3130.1,3129.7,4.54355087]
[1642631989698,2.71855398,3130.1,3129.7,2.12883685]
[1642631989896,0.00113685,3130.1,3129.7,4.52372086]
[1642631991746,0.00113685,3130.1,3129.7,4.52258401]
[1642631993041,0.00113685,3130.1,3129.7,2.1277]
[1642631993841,0.00113685,3130.1,3129.7,4.51949695]
[1642631994043,0.00113685,3130.1,3129.7,4.52315114]
[1642631994248,0.00113685,3130.1,3129.7,4.53259505]
[1642631994701,0.00113685,3130.1,3129.7,5.52611278]
[1642631994885,0.00113685,3130.1,3129.7,2.1277]
[1642631995086,0.00113685,3130.1,3129.7,1.1277]
[1642631995286,0.00113685,3130.1,3129.8,2.39446265]
[1642631995486,0.00113685,3130.1,3129.7,1.1277]
[1642631995888,0.00113685,3130.1,3129.7,1.0]
[1642631996091,0.00113685,3130.1,3129.8,2.40079883]
[1642631996294,0.00113685,3130.1,3129.8,2.39685185]
[1642631996494,0.00113685,3130.1,3129.7,1.0]
[1642631996900,0.00113685,3130.1,3129.8,2.40265801]
[1642631997093,0.00113685,3130.1,3129.8,2.4052206]
[1642631997294,0.00113685,3130.1,3129.7,1.0]
[1642631997496,0.00113685,3130.1,3129.7,3.45956944]
[1642631998536,0.00113685,3130.1,3129.7,2.43105449]
[1642631998835,0.00113685,3130.1,3129.7,2.40194109]
[1642631999035,0.00113685,3130.1,3129.7,2.41175522]
[1642631999235,0.00113685,3130.1,3129.6,3.0301]
[1642631999441,0.00113685,3130.1,3129.7,2.40347526]
[1642631999636,0.00113685,3130.1,3129.7,2.43099987]
[1642631999836,0.00113685,3130.1,3129.7,2.42578772]
[1642632000037,2.71855789,3130.1,3129.6,2.124]
[1642632000237,2.71855789,3130.1,3129.7,0.1192]
[1642632000438,2.71855789,3130.1,3129.7,0.1216]
[1642632000636,2.71855789,3130.1,3129.7,0.1208]
[1642632000637,3.01855789,3130.1,3129.7,0.1208]
[1642632000839,2.71742104,3130.0,3129.7,0.1216]
[1642632001040,2.71742104,3130.0,3129.7,0.1208]
[1642632001243,2.71742104,3130.0,3129.7,0.12]
[1642632001642,2.71742104,3130.0,3129.6,2.1248]
[1642632001841,2.71742104,3130.0,3129.7,0.1192]
[1642632002045,0.00113685,3130.1,3129.7,0.1192]
[1642632002287,2.71866805,3130.1,3129.7,2.5080314]
[1642632002487,0.02,3130.2,3129.7,0.12]
[1642632002688,0.02,3130.2,3129.8,0.00170527]
[1642632004190,0.02,3130.2,3129.7,0.0022737]
[1642632005392,0.02,3130.2,3129.7,0.2499737]
[1642632005593,0.02,3130.2,3129.7,0.1299737]
[1642632007348,0.02,3130.2,3129.7,2.5671929]
[1642632007549,0.02,3130.2,3129.7,2.75293156]
[1642632007748,0.02,3130.2,3129.7,2.63373156]
[1642632007948,0.02,3130.2,3129.7,0.1299737]
[1642632008351,3.22,3130.2,3129.7,0.2491737]
[1642632008651,3.22,3130.2,3129.7,0.2499737]
[1642632008849,3.22,3130.2,3129.7,0.1299737]
[1642632010512,3.17,3130.2,3129.7,0.1299737]
[1642632010912,3.17,3130.2,3129.7,0.0022737]
[1642632011919,3.17,3130.2,3129.7,0.1299737]
[1642632018085,3.17,3130.2,3129.7,0.0022737]
[1642632020091,3.17,3130.2,3129.7,0.47700971]
[1642632020940,3.17,3130.2,3129.7,0.0022737]
[1642632022747,2.71748213,3130.1,3129.7,0.0022737]
[1642632022944,3.01748213,3130.1,3129.7,0.0022737]
[1642632023143,2.71748213,3130.0,3129.7,0.0022737]
[1642632025796,3.01748213,3130.0,3129.7,0.0022737]
[1642632026002,0.3,3129.8,3129.7,0.0022737]
[1642632026203,0.29882344,3130.0,3129.7,0.0022737]
[1642632026405,2.71758432,3129.9,3129.7,0.0022737]
[1642632026608,0.3,3129.8,3129.7,0.0022737]
[1642632027010,3.17,3130.2,3129.7,0.0022737]
[1642632027207,2.71763076,3130.1,3129.7,0.0022737]
[1642632030243,4.08374814,3130.2,3129.7,0.47831126]
[1642632031746,3.77,3130.2,3129.7,0.0022737]
[1642632036072,3.77,3130.2,3129.7,0.1299737]
[1642632038172,3.77,3130.2,3129.7,0.0022737]
[1642632041402,3.77,3130.2,3129.7,0.1299737]
[1642632042006,1.28766,3130.1,3129.7,0.0022737]
[1642632043948,2.0864631,3130.1,3129.7,0.0022737]
[1642632046352,1.28766,3130.1,3129.7,0.0022737]
[1642632048609,2.69695916,3130.0,3129.7,0.0022737]
[1642632048810,3.49584916,3130.0,3129.7,0.0022737]
[1642632049007,1.0,3129.9,3129.7,0.0022737]
[1642632049409,1.0,3129.9,3129.7,0.0014737]
[1642632049410,2.72511274,3129.8,3129.7,0.0014737]
[1642632049611,1.13589209,3129.8,3129.7,0.0014737]
[1642632050007,0.43589209,3129.8,3129.7,0.0014737]
[1642632050413,5.72555907,3129.8,3129.7,0.0014737]
[1642632050714,4.15372052,3129.8,3129.7,0.0014737]
[1642632051753,6.729979,3129.8,3129.7,0.0014737]
[1642632052556,6.889939,3129.8,3129.7,0.0014737]
[1642632053056,4.31368052,3129.8,3129.1,0.00488424]
[1642632053257,3.71782843,3129.7,3128.9,0.13382108]
[1642632053456,3.71782843,3129.7,3129.0,0.00545266]
[1642632053457,3.44651926,3129.6,3129.0,0.00545266]
[1642632053758,1.0,3129.5,3129.0,0.00545266]
[1642632053960,1.6,3129.5,3129.0,0.00545266]
[1642632054155,1.6,3129.5,3128.8,0.00658951]
[1642632054554,0.13589209,3129.4,3128.8,0.00658951]
[1642632055205,0.79904,3129.3,3128.8,0.00658951]
[1642632055604,0.43589209,3129.2,3128.8,0.00658951]
[1642632056612,3.63589209,3129.2,3128.8,0.00658951]
[1642632056810,0.13589209,3129.1,3128.8,0.00658951]
[1642632058654,0.13589209,3129.1,3128.7,0.00715793]
[1642632060957,1.13589209,3129.1,3128.7,0.00715793]
[1642632061960,0.13589209,3129.0,3128.7,0.00715793]
[1642632062601,0.13589209,3129.0,3128.6,0.00772635]
[1642632062800,0.13589209,3129.0,3128.6,0.13552635]
[1642632063202,0.13589209,3129.0,3128.7,0.00715793]
[1642632067455,0.81589209,3129.1,3128.7,0.00715793]
[1642632067857,0.81589209,3129.1,3128.6,0.00772635]
[1642632068458,3.37422933,3129.1,3128.6,0.00772635]
[1642632068659,18.73,3129.0,3128.6,0.00772635]
[1642632068957,3.370043,3128.9,3128.6,0.00772635]
[1642632069157,18.73,3128.8,3128.6,0.00772635]
[1642632069357,20.03,3128.8,3128.6,0.00772635]
[1642632069561,1.3,3128.8,3128.6,0.00772635]
[1642632070200,0.3,3128.8,3128.6,0.00772635]
[1642632070398,1.09919,3128.9,3128.6,0.00772635]
[1642632070599,1.39919,3128.9,3128.6,0.00772635]
[1642632071002,2.39919,3128.9,3128.6,0.00772635]
[1642632071201,1.39919,3128.9,3128.6,0.00772635]
[1642632071800,18.73,3128.8,3128.6,0.00772635]
[1642632072207,1.0,3128.7,3128.6,0.00772635]
[1642632072402,1.6,3128.7,3128.6,0.00772635]
[1642632077202,20.33,3128.7,3128.6,0.00772635]
[1642632082256,20.48996,3128.7,3128.6,0.00772635]
[1642632082662,20.56999471,3128.7,3128.6,0.00772635]
[1642632082862,20.56999471,3128.7,3128.5,7.47572635]
[1642632083059,0.1278,3128.6,3128.5,7.47572635]
[1642632083259,19.01776,3128.6,3128.5,7.47572635]
[1642632083460,19.09779471,3128.6,3128.5,7.47572635]
[1642632083759,20.09779471,3128.6,3128.5,7.41572635]
[1642632084360,19.96999471,3128.6,3128.5,7.41572635]
[1642632084702,19.96999471,3128.6,3128.5,7.35572635]
[1642632084703,1.23999471,3128.6,3128.5,7.35572635]
[1642632084903,22.67581965,3128.6,3128.5,7.35572635]
[1642632085103,3.94581965,3128.6,3128.5,7.35572635]
[1642632085306,1.23999471,3128.6,3128.5,7.35572635]
[1642632085702,0.23999471,3128.6,3128.5,7.35572635]
[1642632085904,0.23999471,3128.6,3128.5,7.08572635]
[1642632086108,0.23999471,3128.6,3128.5,7.05572635]
[1642632087914,2.95889031,3128.6,3128.5,7.05572635]
[1642632088109,3.95889031,3128.6,3128.5,7.05572635]
[1642632088309,4.0948428,3128.6,3128.5,7.05572635]
[1642632088578,1.3759472,3128.6,3128.5,7.05572635]
[1642632089079,0.3759472,3128.6,3128.5,7.04350395]
[1642632089378,19.1059472,3128.6,3128.5,7.04350395]
[1642632089577,20.1059472,3128.6,3128.5,7.04350395]
[1642632091882,20.1059472,3128.6,3128.5,0.64833075]
[1642632092510,0.7993893,3128.3,3127.2,0.1278]
[1642632092710,2.7872793,3128.3,3127.2,0.1278]
[1642632092911,0.3,3128.1,3127.3,0.00738951]
[1642632093114,0.3,3128.1,3127.4,0.1278]
[1642632093511,0.3,3128.1,3127.5,0.00625266]
[1642632093711,0.3,3128.1,3127.6,0.1278]
[1642632094111,0.3,3128.1,3127.7,0.00511582]
[1642632096262,0.45996,3128.1,3127.7,0.00511582]
[1642632096661,3.5,3128.1,3127.7,0.00511582]
[1642632097062,1.0,3128.0,3127.7,0.00511582]
[1642632097462,1.3,3128.0,3127.7,0.00511582]
[1642632110111,0.15996,3127.8,3127.7,0.00511582]
[1642632110313,1.3,3128.0,3127.7,0.00511582]
[1642632111570,1.4278,3128.0,3127.7,0.00511582]
[1642632112673,1.3,3128.0,3127.7,0.00511582]
[1642632115804,0.15996,3127.8,3127.7,0.00511582]
[1642632116005,2.85237469,3127.8,3127.7,0.00511582]
[1642632116204,4.31233469,3127.8,3127.2,0.00795793]
[1642632116404,1.3,3127.8,3126.8,2.31773733]
[1642632116611,0.3,3127.8,3126.9,0.1279]
[1642632116804,1.3,3127.8,3126.9,0.1375632]
[1642632117010,1.3,3127.8,3127.0,0.00909478]
[1642632117011,1.0,3127.8,3127.0,0.00909478]
[1642632117507,2.58362785,3127.8,3127.0,0.00909478]
[1642632117909,1.0,3127.7,3127.0,0.00909478]
[1642632118108,1.6,3127.7,3127.0,0.00909478]
[1642632118554,1.6,3127.7,3126.8,0.01023163]
[1642632118755,1.6,3127.7,3126.9,0.1279]
[1642632119164,1.6,3127.7,3127.0,0.00909478]
[1642632119360,1.6,3127.7,3127.1,0.1279]
[1642632119561,0.4279,3127.8,3127.0,0.00909478]
[1642632119762,1.1279,3127.8,3127.2,0.00795793]
[1642632119962,0.1279,3127.8,3126.9,0.0096632]
[1642632120162,1.1279,3127.8,3126.9,0.0096632]
[1642632120359,0.1279,3127.8,3126.9,0.0096632]
[1642632120563,1.1279,3127.8,3126.9,0.0096632]
[1642632120963,0.1279,3127.8,3126.9,0.0096632]
[1642632121162,1.1279,3127.8,3126.9,0.0096632]
[1642632121563,0.1279,3127.8,3126.9,0.0096632]
[1642632121767,1.1279,3127.8,3126.9,0.0096632]
[1642632122063,0.1279,3127.8,3126.9,2.3171689]
[1642632122314,1.0,3127.8,3127.0,0.1279]
[1642632122514,1.0,3127.8,3127.0,0.13699478]
[1642632122712,1.0,3127.8,3127.1,0.00852636]
[1642632122918,1.7919,3127.9,3127.1,0.00852636]
[1642632123519,1.7919,3127.9,3127.0,0.00909478]
[1642632123919,0.16936363,3127.8,3127.0,0.00909478]
[1642632124119,0.16936363,3127.8,3127.1,0.1279]
[1642632124322,0.16936363,3127.8,3127.0,0.1278]
[1642632124521,0.16936363,3127.8,3127.2,0.00795793]
[1642632124725,0.16936363,3127.8,3127.3,0.1278]
[1642632124922,0.16936363,3127.8,3127.2,0.1278]
[1642632125120,0.16936363,3127.8,3127.4,0.00682109]
[1642632127893,0.16936363,3127.8,3127.1,0.00852636]
[1642632128095,1.16936363,3127.8,3127.1,0.00852636]
[1642632128693,0.16936363,3127.8,3127.1,0.00852636]
[1642632128893,0.16936363,3127.7,3127.1,0.00852636]
[1642632133561,0.16936363,3127.7,3127.0,0.00909478]
[1642632134766,0.1279,3127.6,3127.0,0.00909478]
[1642632135162,0.16936363,3127.5,3127.0,0.00909478]
[1642632135362,0.16936363,3127.5,3126.9,0.0096632]
[1642632136366,0.16936363,3127.6,3126.9,0.0096632]
[1642632137820,0.16936363,3127.6,3126.8,0.01023163]
[1642632139023,0.16936363,3127.6,3126.9,0.1279]
[1642632139424,0.16936363,3127.6,3127.0,0.00909478]
[1642632140128,0.16936363,3127.6,3126.9,0.0096632]
[1642632141277,2.88406822,3127.6,3126.9,0.0096632]
[1642632141477,3.48406822,3127.6,3126.9,0.0096632]
[1642632141676,1.0,3127.5,3126.9,0.0096632]
[1642632142085,0.76936363,3127.6,3126.9,0.0096632]
[1642632142780,0.16936363,3127.5,3126.9,0.0096632]
[1642632142979,0.46936363,3127.5,3126.9,0.0096632]
[1642632143780,0.16936363,3127.5,3126.9,0.0096632]
[1642632143978,0.16936363,3127.4,3126.9,0.0096632]
[1642632145224,0.16936363,3127.6,3126.9,0.0096632]
[1642632148568,3.36936363,3127.6,3126.9,0.0096632]
[1642632148974,1.16936363,3127.5,3126.9,0.0096632]
[1642632150376,0.16936363,3127.4,3126.9,0.0096632]
[1642632155429,0.16936363,3127.4,3126.8,0.01023163]
[1642632160823,0.16936363,3127.4,3126.5,0.1279]
[1642632161023,0.00284212,3127.3,3126.3,0.1279]
[1642632161222,0.00284212,3127.3,3126.6,0.00113684]
[1642632161423,0.0022737,3127.2,3126.6,0.00113684]
[1642632161622,0.17163733,3127.2,3126.6,0.00113684]
[1642632161821,0.00170527,3127.1,3126.6,0.00113684]
[1642632162025,0.00170527,3127.1,3126.3,1.59874]
[1642632162224,0.00113685,3127.0,3126.4,0.1279]
[1642632162422,0.00113685,3127.0,3126.4,0.13017369]
[1642632162622,0.00170527,3127.1,3126.5,0.00170527]
[1642632162824,0.16936363,3126.9,3126.6,0.1279]
[1642632164072,0.16936363,3126.8,3126.6,0.1279]
[1642632164271,0.13988025,3126.8,3126.6,0.1279]
[1642632164468,0.13988025,3126.8,3126.6,0.1579]
[1642632164669,0.13988025,3126.8,3126.6,0.1879]
[1642632165469,0.00113685,3127.0,3126.6,0.1879]
[1642632168424,3.20113685,3127.0,3126.6,0.1879]
[1642632168728,3.50113685,3127.0,3126.6,0.1879]
[1642632169724,3.50113685,3127.0,3126.6,0.1579]
[1642632170226,3.50113685,3127.0,3126.6,0.1279]
[1642632172482,3.20113685,3127.0,3126.6,0.1279]
[1642632173887,3.50113685,3127.0,3126.6,0.1279]
[1642632178473,3.50113685,3127.0,3126.5,0.12960527]
[1642632180880,3.50113685,3127.0,3126.5,0.00170527]
[1642632183021,3.47113685,3127.0,3126.5,0.00170527]
[1642632184930,3.20113685,3127.0,3126.5,0.00170527]
[1642632185131,3.20113685,3127.0,3126.6,0.1279]
[1642632185532,0.16229908,3126.9,3126.6,0.1279]
[1642632189579,0.08370663,3126.9,3126.6,0.1279]
[1642632190625,0.08370663,3126.9,3126.6,0.92727]
[1642632197932,0.08370663,3126.9,3126.6,0.1279]
[1642632198936,0.08370663,3126.9,3126.6,0.92727]
[1642632199336,0.08370663,3126.9,3126.5,2.31859658]
[1642632200639,0.08370663,3126.9,3126.6,3.11622131]
[1642632200838,0.06918415,3126.9,3126.8,2.31689131]
[1642632201084,0.06918415,3126.9,3126.8,0.73774]
[1642632201281,0.06918415,3126.9,3126.8,0.5779]
[1642632201881,3.2,3127.0,3126.8,4.11712784]
[1642632202285,3.2,3127.0,3126.8,1.0279]
[1642632202481,3.2,3127.0,3126.9,2.77821941]
[1642632202882,3.2,3127.0,3126.9,3.87488453]
[1642632203285,3.2,3127.0,3126.9,4.03472453]
[1642632203888,0.58768779,3128.2,3127.0,0.45]
[1642632204092,2.71908633,3128.1,3127.4,0.79913]
[1642632204287,3.02647584,3128.1,3127.5,2.68159167]
[1642632204489,0.00738951,3128.1,3127.5,2.68159167]
[1642632205752,0.00738951,3128.1,3127.6,1.72582]
[1642632205953,0.00738951,3128.1,3127.7,2.6488276]
[1642632207557,0.00738951,3128.1,3127.8,0.799]
[1642632207754,0.00738951,3128.1,3127.9,0.1278]
[1642632208054,0.00738951,3128.1,3127.9,1.197]
[1642632208055,3.20738951,3128.1,3127.9,1.197]
[1642632208886,3.20738951,3128.1,3128.0,2.49469125]
[1642632209085,0.58768779,3129.1,3128.4,0.7988]
[1642632209490,0.00511581,3129.0,3128.4,0.7988]
[1642632209689,0.00511581,3129.0,3128.5,0.76966938]
[1642632209890,0.58768779,3129.6,3128.9,2.0]
[1642632210091,0.58768779,3129.6,3128.9,2.8768]
[1642632210289,0.00795793,3129.5,3128.9,0.8768]
[1642632210489,0.00795793,3129.5,3129.1,2.0]
[1642632210689,0.0073895,3129.4,3129.1,2.0]
[1642632211092,4.2982,3130.0,3129.1,2.0]
[1642632211093,0.00682108,3129.3,3129.1,2.0]
[1642632211496,0.00625266,3129.2,3129.0,3.23821684]
[1642632211694,0.00625266,3129.2,3129.1,0.60979]
[1642632211893,0.58768779,3129.7,3129.1,0.60979]
[1642632212328,0.58768779,3129.7,3129.1,3.28890684]
[1642632212732,0.58768779,3129.7,3129.1,0.60979]
[1642632212935,0.58768779,3129.7,3129.1,0.55979]
[1642632213131,0.58768779,3129.7,3129.1,2.15698]
[1642632213329,0.01080004,3130.0,3129.1,2.15698]
[1642632213531,0.01080004,3130.0,3129.2,0.1278]
[1642632213731,0.01023162,3129.9,3129.2,0.1278]
[1642632214132,0.0096632,3129.8,3129.2,0.1278]
[1642632214533,0.00909477,3129.7,3129.2,2.7003646]
[1642632214734,0.00909477,3129.7,3129.2,2.72795752]
[1642632214933,0.00852635,3129.6,3129.2,2.72795752]
[1642632215133,0.00852635,3129.6,3129.3,0.79858]
[1642632215337,1.4925249,3130.3,3129.4,2.57929281]
[1642632215338,0.00795793,3129.5,3129.4,2.57929281]
[1642632215735,0.01193689,3129.5,3129.4,2.57929281]
[1642632217607,0.01193689,3129.5,3129.2,3.26101129]
[1642632218013,0.0073895,3129.4,3129.2,3.26101129]
[1642632218209,0.0073895,3129.4,3129.3,2.55733589]
[1642632218412,1.4925249,3130.3,3129.3,2.55733589]
[1642632218608,1.7925249,3130.3,3129.3,2.55733589]
[1642632218810,0.01193689,3130.2,3129.3,2.55733589]
[1642632219010,0.01193689,3130.2,3129.2,0.76966938]
[1642632219211,0.01136847,3130.1,3129.2,0.76966938]
[1642632219411,3.2,3129.4,3129.2,0.76966938]
[1642632219836,0.00682108,3129.3,3129.2,0.76966938]
[1642632220036,0.00682108,3129.3,3129.2,0.1278]
[1642632220238,0.00682108,3129.3,3128.9,0.1278]
[1642632220437,0.00682108,3129.3,3128.8,3.31287736]
[1642632220640,0.00625266,3129.2,3128.8,3.31287736]
[1642632220838,0.00625266,3129.2,3128.8,0.79874]
[1642632221035,0.00568423,3129.1,3128.8,3.30341115]
[1642632221235,0.00568423,3129.1,3128.8,0.79874]
[1642632221438,0.00511581,3129.0,3128.8,0.79874]
[1642632221636,0.00511581,3129.0,3128.8,3.27492197]
[1642632221838,3.2,3129.4,3128.9,2.52549684]
[1642632222236,0.00682108,3129.3,3128.9,2.52549684]
[1642632222635,0.00625266,3129.2,3128.9,2.52549684]
[1642632222838,0.00625266,3129.2,3129.0,0.1278]
[1642632223143,0.00568423,3129.1,3129.0,0.1278]
[1642632225892,0.00568423,3129.1,3128.9,2.65329684]
[1642632226092,0.00568423,3129.1,3128.8,3.29228042]
[1642632226292,0.00511581,3129.0,3128.8,0.79874]
[1642632226692,0.00454739,3128.9,3128.8,0.79874]
[1642632227936,0.00454739,3128.9,3128.7,0.1278]
[1642632228337,0.00397896,3128.8,3128.7,0.1278]
[1642632228536,0.00397896,3128.8,3128.7,0.5778]
[1642632228936,0.00397896,3128.8,3128.7,3.04313]
[1642632230139,0.00397896,3128.8,3128.7,0.5778]
[1642632230541,0.00397896,3128.8,3128.7,1.0278]
[1642632231289,0.00397896,3128.8,3128.7,3.55825079]
[1642632231490,3.2,3129.4,3128.9,0.79862]
[1642632231689,3.2,3129.4,3129.0,2.72025745]
[1642632231889,0.00284212,3129.3,3129.0,2.59245745]
[1642632232289,0.0022737,3129.2,3128.9,2.49107627]
[1642632232489,0.0022737,3129.2,3128.8,1.59723]
[1642632232690,3.8,3129.4,3128.8,1.59723]
[1642632232691,0.00170527,3129.1,3128.8,1.59723]
[1642632233090,0.00113685,3129.0,3128.8,1.59723]
[1642632233594,0.00113685,3129.0,3128.7,0.1232]
[1642632233790,0.00113685,3129.0,3128.7,0.1248]
[1642632233991,0.00113685,3129.0,3128.7,0.128]
[1642632234192,0.00113685,3129.0,3128.7,0.1272]
[1642632234392,0.00113685,3129.0,3128.7,0.124]
[1642632234594,0.00113685,3129.0,3128.7,0.1248]
[1642632234859,0.00113685,3129.0,3128.8,0.12]
[1642632235050,0.00113685,3129.0,3128.7,0.1264]
[1642632235247,0.00113685,3129.0,3128.7,0.1248]
[1642632235448,0.00113685,3129.0,3128.7,0.1208]
[1642632235648,0.00113685,3129.0,3128.7,0.12]
[1642632235852,0.00113685,3129.0,3128.8,0.79874]
[1642632236049,0.00113685,3129.0,3128.9,2.48492715]
[1642632236254,0.00113685,3129.0,3128.8,0.79874]
[1642632236452,0.00113685,3129.0,3128.9,2.56207385]
[1642632237252,0.00113685,3129.0,3128.8,0.79874]
[1642632237454,0.00113685,3129.0,3128.9,2.46405822]
[1642632237655,0.00113685,3129.0,3128.8,0.79874]
[1642632237856,0.00113685,3129.0,3128.8,0.92654]
[1642632238054,0.00113685,3129.0,3128.9,2.47243668]
[1642632239095,0.00113685,3129.0,3128.8,0.92654]
[1642632239294,0.00113685,3129.0,3128.8,0.79874]
[1642632239694,0.00113685,3129.0,3128.9,0.57]
[1642632239892,0.00113685,3129.0,3128.9,0.45]
[1642632240492,0.00113685,3129.0,3128.9,0.9]
[1642632240694,0.00113685,3129.0,3128.9,3.42086011]
[1642632240895,0.00113685,3129.0,3128.9,1.0278]
[1642632241697,0.00113685,3129.0,3128.9,3.49466231]
[1642632242229,0.00113685,3129.0,3128.9,1.0278]
[1642632242435,0.00113685,3129.0,3128.9,3.50918451]
[1642632242639,0.00113685,3129.0,3128.9,4.40986628]
[1642632242839,0.00113685,3129.0,3128.9,1.82653]
[1642632243039,0.00113685,3129.0,3128.9,4.3934274]
[1642632244043,0.00113685,3129.0,3128.9,1.82653]
[1642632244642,0.00113685,3129.0,3128.9,4.43748742]
[1642632245041,0.00113685,3129.0,3128.9,4.30456141]
[1642632245239,0.00113685,3129.0,3128.9,4.28074526]
[1642632245440,0.00113685,3129.0,3128.9,1.69873]
[1642632246418,0.00113685,3129.0,3128.9,4.38228949]
[1642632246620,0.00113685,3129.0,3128.9,1.69873]
[1642632247418,0.00113685,3129.0,3128.9,0.9]
[1642632248016,0.00113685,3129.0,3128.9,3.38539017]
[1642632248216,0.00113685,3129.0,3128.9,3.50699017]
[1642632248418,0.00113685,3129.0,3128.9,3.50779017]
[1642632248616,0.00113685,3129.0,3128.9,3.50699017]
[1642632248817,0.00113685,3129.0,3128.9,3.50619017]
[1642632249020,0.00113685,3129.0,3128.9,3.50699017]
[1642632249416,0.00113685,3129.0,3128.9,3.50619017]
[1642632249620,0.00113685,3129.0,3128.9,3.50699017]
[1642632250039,0.00113685,3129.0,3128.9,1.0208]
[1642632250245,0.00113685,3129.0,3128.9,3.5471085]
[1642632250444,0.00113685,3129.0,3128.9,3.51573209]
[1642632250741,0.00113685,3129.0,3128.9,3.51653209]
[1642632250944,0.00113685,3129.0,3128.9,3.39333209]
[1642632251142,0.00113685,3129.0,3128.9,3.51573209]
[1642632251343,0.00113685,3129.0,3128.9,3.51493209]
[1642632251543,0.00113685,3129.0,3128.9,3.51573209]
[1642632251747,0.00113685,3129.0,3128.9,3.39333209]
[1642632252345,0.00113685,3129.0,3128.9,0.9]
[1642632252547,3.18894084,3129.4,3129.0,0.45]
[1642632252746,3.48894084,3129.4,3129.0,0.45]
[1642632252947,0.00170527,3129.3,3129.0,2.93828135]
[1642632253147,0.00170527,3129.3,3129.0,2.9428383]
[1642632253348,0.00113685,3129.2,3129.0,0.45]
[1642632256790,0.00113685,3129.2,3129.0,2.92113597]
[1642632256995,0.00113685,3129.2,3129.0,0.45]
[1642632261894,0.00113685,3129.2,3129.0,2.95134691]
[1642632262094,0.00113685,3129.2,3129.0,0.45]
[1642632263093,0.00113685,3129.2,3129.0,2.978848]
[1642632263395,0.00113685,3129.2,3129.1,2.4712675]
[1642632265243,0.00113685,3129.2,3129.0,2.93297717]
[1642632265646,0.00113685,3129.2,3129.0,2.92535586]
[1642632265843,0.00113685,3129.2,3129.0,0.45]
[1642632266048,0.00113685,3129.2,3129.0,2.91952087]
[1642632266249,0.00113685,3129.2,3129.0,2.94482231]
[1642632266549,0.00113685,3129.2,3129.0,2.91775437]
[1642632266749,0.00113685,3129.2,3129.0,0.45]
[1642632268498,0.13589286,3129.1,3129.0,0.45]
[1642632270096,0.13589286,3129.1,3129.0,2.93107476]
[1642632270295,0.13589286,3129.1,3129.0,0.45]
[1642632270897,0.13589286,3129.1,3129.0,2.95706861]
[1642632271295,0.13589286,3129.1,3129.0,0.45]
[1642632271697,0.13589286,3129.1,3129.0,2.95899427]
[1642632272097,0.13589286,3129.1,3129.0,0.45]
[1642632272345,0.13589286,3129.1,3129.0,2.9243227]
[1642632273446,0.13589286,3129.1,3129.0,0.45]
[1642632274353,0.13589286,3129.1,3129.0,3.01208093]
[1642632274551,0.13589286,3129.1,3129.0,0.45]
[1642632276408,0.13589286,3129.1,3129.0,3.00715256]
[1642632276607,0.13589286,3129.1,3129.0,0.45]
[1642632278109,0.13589286,3129.1,3129.0,3.01685703]
[1642632278315,0.13589286,3129.1,3129.0,0.45]
[1642632281554,0.13589286,3129.1,3129.0,3.10019353]
[1642632281754,0.13589286,3129.1,3129.0,3.01243867]
[1642632281955,0.13589286,3129.1,3129.0,0.45]
[1642632295149,3.48894084,3129.4,3129.0,0.45]
[1642632295150,0.13589286,3129.3,3129.0,0.45]
[1642632295548,0.13759813,3129.3,3129.0,0.45]
[1642632299102,0.13759813,3129.3,3129.1,2.0]
[1642632303506,0.13759813,3129.3,3129.1,5.2]
[1642632304200,0.00170527,3129.3,3129.1,5.2]
[1642632305406,0.13589286,3129.2,3129.1,5.2]
[1642632306704,0.00170527,3129.3,3129.1,5.2]
[1642632307906,0.13589286,3129.2,3129.1,5.2]
[1642632309107,0.00170527,3129.3,3129.1,5.2]
[1642632309307,1.10800378,3129.2,3129.1,5.2]
[1642632310357,1.24389664,3129.2,3129.1,5.2]
[1642632312563,1.54389664,3129.2,3129.1,5.2]
[1642632313263,1.51389664,3129.2,3129.1,5.2]
[1642632314500,1.24389664,3129.2,3129.1,5.2]
[1642632316001,1.54389664,3129.2,3129.1,5.2]
[1642632316206,1.84389664,3129.2,3129.1,5.2]
[1642632316807,1.84389664,3129.2,3129.1,3.2]
[1642632317450,4.54157146,3129.2,3129.1,3.2]
[1642632317647,1.84389664,3129.2,3129.1,3.2]
[1642632317846,1.84389664,3129.2,3128.4,3.08922784]
[1642632318050,2.69767482,3129.1,3128.4,3.08922784]
[1642632318250,2.69767482,3129.1,3128.5,0.00284212]
[1642632318449,1.10800378,3128.8,3128.5,0.00284212]
[1642632318750,1.70800378,3128.8,3128.5,0.00284212]
[1642632319353,0.93513176,3128.7,3128.5,0.00284212]
[1642632319554,0.3,3128.6,3128.5,0.00284212]
[1642632319755,2.9836505,3128.6,3128.5,0.00284212]